[Event "Live Chess"]
[Site "Chess.com"]
[Date "2024.06.01"]
[Round "-"]
[White "Bradfield133"]
[Black "Richardallis"]
[Result "0-1"]
[WhiteElo "1961"]
[BlackElo "2046"]
[TimeControl "300"]
[EndTime "11:51:10 PDT"]
[Termination "Richardallis won by resignation"]

1. c4 {[%clk 0:04:57.1]} 1... c6 {[%clk 0:04:57.7]} 2. Qa4 {[%clk 0:04:54.7]}
2... d5 {[%clk 0:04:55.5]} 3. cxd5 {[%clk 0:04:52.6]} 3... Qxd5 {[%clk
0:04:54.9]} 4. Nf3 {[%clk 0:04:50.4]} 4... Nd7 {[%clk 0:04:50.6]} 5. g3 {[%clk
0:04:48.1]} 5... Nc5 {[%clk 0:04:46]} 6. Qc2 {[%clk 0:04:46.1]} 6... Bf5 {[%clk
0:04:43]} 7. Qd1 {[%clk 0:04:28.5]} 7... O-O-O {[%clk 0:04:36.7]} 8. Bg2 {[%clk
0:04:24.3]} 8... Bxb1 {[%clk 0:04:32.2]} 9. Rxb1 {[%clk 0:04:20.1]} 9... Qe4
{[%clk 0:04:31.3]} 10. d3 {[%clk 0:04:14.4]} 10... Nxd3+ {[%clk 0:04:25.6]} 11.
Kf1 {[%clk 0:04:05.5]} 11... Nf4 {[%clk 0:04:21.4]} 12. Bd2 {[%clk 0:03:57.9]}
12... Nxg2 {[%clk 0:04:17.8]} 13. Kxg2 {[%clk 0:03:55.4]} 13... e5 {[%clk
0:04:11.6]} 14. Re1 {[%clk 0:03:45.1]} 14... Bb4 {[%clk 0:04:09.5]} 15. Kg1
{[%clk 0:03:40.2]} 15... Ne7 {[%clk 0:03:58.6]} 16. Qc1 {[%clk 0:03:25.9]} 16...
Bxd2 {[%clk 0:03:46.1]} 17. Nxd2 {[%clk 0:03:20.4]} 17... Qd5 {[%clk 0:03:44]}
18. Nc4 {[%clk 0:03:14.7]} 18... Ng6 {[%clk 0:03:39.6]} 19. b4 {[%clk
0:03:02.3]} 19... f6 {[%clk 0:03:33.1]} 20. b5 {[%clk 0:02:49.4]} 20... Kb8
{[%clk 0:03:27.4]} 21. Ne3 {[%clk 0:02:38.9]} 21... Qd2 {[%clk 0:03:24.9]} 22.
bxc6 {[%clk 0:02:06.4]} 22... Qxc1 {[%clk 0:03:23]} 23. Rexc1 {[%clk 0:02:05.3]}
23... Rc8 {[%clk 0:03:17.3]} 24. cxb7 {[%clk 0:01:59.7]} 24... Rxc1+ {[%clk
0:03:15.3]} 25. Rxc1 {[%clk 0:01:57.7]} 25... Kxb7 {[%clk 0:03:14.7]} 26. Nd5
{[%clk 0:01:50.3]} 26... Rd8 {[%clk 0:03:10.9]} 27. e4 {[%clk 0:01:48.8]} 27...
Rd7 {[%clk 0:03:08.3]} 28. Rb1+ {[%clk 0:01:44.2]} 28... Ka8 {[%clk 0:03:05.5]}
29. f3 {[%clk 0:01:35.6]} 29... Ne7 {[%clk 0:03:04]} 30. Nxe7 {[%clk 0:01:26.3]}
30... Rxe7 {[%clk 0:03:02.1]} 31. Rb2 {[%clk 0:01:26.2]} 31... Rc7 {[%clk
0:02:59.4]} 32. Kf2 {[%clk 0:01:24.9]} 32... Rc3 {[%clk 0:02:54.5]} 33. f4
{[%clk 0:01:20.4]} 33... a6 {[%clk 0:02:52.3]} 34. fxe5 {[%clk 0:01:17.4]} 34...
fxe5 {[%clk 0:02:51.8]} 35. g4 {[%clk 0:01:04.2]} 35... h6 {[%clk 0:02:44.2]}
36. h4 {[%clk 0:01:01.3]} 36... Rh3 {[%clk 0:02:42.3]} 37. h5 {[%clk 0:00:58.5]}
37... Rh2+ {[%clk 0:02:39.7]} 0-1

[Event "Live Chess"]
[Site "Chess.com"]
[Date "2024.06.01"]
[Round "-"]
[White "PureDashingOctopus"]
[Black "KeithArkell"]
[Result "0-1"]
[WhiteElo "2261"]
[BlackElo "2499"]
[TimeControl "300"]
[EndTime "11:51:14 PDT"]
[Termination "KeithArkell won by resignation"]

1. e4 {[%clk 0:04:58.3]} 1... c6 {[%clk 0:04:59.2]} 2. Nc3 {[%clk 0:04:56]} 2...
d5 {[%clk 0:04:58.5]} 3. Nf3 {[%clk 0:04:53.6]} 3... Bg4 {[%clk 0:04:57.1]} 4.
h3 {[%clk 0:04:52.7]} 4... Bxf3 {[%clk 0:04:56.3]} 5. Qxf3 {[%clk 0:04:52.6]}
5... dxe4 {[%clk 0:04:55.9]} 6. Nxe4 {[%clk 0:04:51.4]} 6... Nd7 {[%clk
0:04:55.6]} 7. d4 {[%clk 0:04:48.9]} 7... Ndf6 {[%clk 0:04:54.8]} 8. c3 {[%clk
0:04:47.1]} 8... Nxe4 {[%clk 0:04:54]} 9. Qxe4 {[%clk 0:04:46.5]} 9... Nf6
{[%clk 0:04:53.7]} 10. Qc2 {[%clk 0:04:46.1]} 10... e6 {[%clk 0:04:51.9]} 11.
Bd3 {[%clk 0:04:45.6]} 11... Be7 {[%clk 0:04:50.8]} 12. O-O {[%clk 0:04:45.1]}
12... O-O {[%clk 0:04:49.9]} 13. Bd2 {[%clk 0:04:44.6]} 13... c5 {[%clk
0:04:48.3]} 14. dxc5 {[%clk 0:04:43.2]} 14... Bxc5 {[%clk 0:04:47.5]} 15. Rad1
{[%clk 0:04:42.7]} 15... Qc7 {[%clk 0:04:46.8]} 16. Bg5 {[%clk 0:04:41.3]} 16...
h6 {[%clk 0:04:41.9]} 17. Bxf6 {[%clk 0:04:40]} 17... gxf6 {[%clk 0:04:41.8]}
18. Qe2 {[%clk 0:04:37.5]} 18... f5 {[%clk 0:04:38.3]} 19. Kh1 {[%clk
0:04:15.6]} 19... Qe7 {[%clk 0:04:33.6]} 20. Qh5 {[%clk 0:04:03.4]} 20... Qg5
{[%clk 0:04:31.9]} 21. Qxg5+ {[%clk 0:03:57.5]} 21... hxg5 {[%clk 0:04:31.8]}
22. f3 {[%clk 0:03:44.1]} 22... f4 {[%clk 0:04:26]} 23. Be4 {[%clk 0:03:43]}
23... Rab8 {[%clk 0:04:23.9]} 24. Rd7 {[%clk 0:03:41]} 24... b5 {[%clk
0:04:23.1]} 25. Rfd1 {[%clk 0:03:36.3]} 25... Kg7 {[%clk 0:04:21.4]} 26. g3
{[%clk 0:03:27.5]} 26... fxg3 {[%clk 0:04:18.8]} 27. Kg2 {[%clk 0:03:26.7]}
27... Bf2 {[%clk 0:04:17.9]} 28. Rc7 {[%clk 0:03:09.1]} 28... Rfd8 {[%clk
0:04:14.2]} 29. Rdd7 {[%clk 0:03:07.3]} 29... Rxd7 {[%clk 0:04:12.9]} 30. Rxd7
{[%clk 0:03:07.2]} 30... Kf6 {[%clk 0:04:10.9]} 31. Rc7 {[%clk 0:02:52.4]} 31...
Rd8 {[%clk 0:04:09]} 32. Rb7 {[%clk 0:02:48.7]} 32... Rd2 {[%clk 0:04:04.3]} 33.
Rxb5 {[%clk 0:02:42.1]} 33... Be1+ {[%clk 0:04:01.6]} 34. Kf1 {[%clk 0:02:35.8]}
34... g2+ {[%clk 0:03:59.5]} 35. Kg1 {[%clk 0:02:35.2]} 35... Bg3 {[%clk
0:03:56.2]} 36. f4 {[%clk 0:02:07.8]} 36... gxf4 {[%clk 0:03:35.3]} 37. Bxg2
{[%clk 0:02:06.8]} 37... Bf2+ {[%clk 0:03:32.5]} 38. Kf1 {[%clk 0:02:04]} 38...
Be3 {[%clk 0:03:31.8]} 39. Be4 {[%clk 0:01:58.7]} 39... a6 {[%clk 0:03:24.1]}
40. Rb7 {[%clk 0:01:55.7]} 40... Ke5 {[%clk 0:03:22.9]} 41. Bg2 {[%clk
0:01:48.8]} 41... Rf2+ {[%clk 0:03:19.5]} 42. Ke1 {[%clk 0:01:37.7]} 42... Rxg2
{[%clk 0:03:18.2]} 0-1

[Event "Live Chess"]
[Site "Chess.com"]
[Date "2024.06.01"]
[Round "-"]
[White "grandmaster1707"]
[Black "chess5013"]
[Result "1-0"]
[WhiteElo "1471"]
[BlackElo "1276"]
[TimeControl "300"]
[EndTime "11:51:30 PDT"]
[Termination "grandmaster1707 won by checkmate"]

1. e4 {[%clk 0:04:58.4]} 1... c5 {[%clk 0:04:58.4]} 2. Nf3 {[%clk 0:04:57.9]}
2... d6 {[%clk 0:04:57.6]} 3. Bc4 {[%clk 0:04:57.5]} 3... Nc6 {[%clk 0:04:54.4]}
4. d4 {[%clk 0:04:56]} 4... cxd4 {[%clk 0:04:52.6]} 5. Nxd4 {[%clk 0:04:55.3]}
5... Nxd4 {[%clk 0:04:51.6]} 6. Qxd4 {[%clk 0:04:54.4]} 6... Nf6 {[%clk
0:04:49]} 7. Bg5 {[%clk 0:04:52.9]} 7... e6 {[%clk 0:04:41.3]} 8. Nc3 {[%clk
0:04:51.8]} 8... Be7 {[%clk 0:04:39.6]} 9. f4 {[%clk 0:04:49.7]} 9... a6 {[%clk
0:04:35.3]} 10. O-O-O {[%clk 0:04:42.3]} 10... b5 {[%clk 0:04:31.2]} 11. Bb3
{[%clk 0:04:39.4]} 11... O-O {[%clk 0:04:26.5]} 12. e5 {[%clk 0:04:28.5]} 12...
dxe5 {[%clk 0:04:19.9]} 13. Qxe5 {[%clk 0:04:24.7]} 13... Qb6 {[%clk 0:04:06.7]}
14. Ne4 {[%clk 0:04:19.4]} 14... Nxe4 {[%clk 0:03:51.2]} 15. Qxe4 {[%clk
0:04:16.6]} 15... Bb7 {[%clk 0:03:41.4]} 16. Qe5 {[%clk 0:04:09.4]} 16... f6
{[%clk 0:03:36]} 17. Qxe6+ {[%clk 0:04:07.3]} 17... Qxe6 {[%clk 0:03:33.4]} 18.
Bxe6+ {[%clk 0:04:05.6]} 18... Kh8 {[%clk 0:03:32.6]} 19. Bh4 {[%clk 0:04:04.1]}
19... Rad8 {[%clk 0:03:11.7]} 20. Rde1 {[%clk 0:04:00]} 20... Bd6 {[%clk
0:02:59.2]} 21. f5 {[%clk 0:03:52.1]} 21... Bf4+ {[%clk 0:02:41.7]} 22. Kb1
{[%clk 0:03:50.5]} 22... Bc8 {[%clk 0:02:37.3]} 23. g3 {[%clk 0:03:47.2]} 23...
Bd2 {[%clk 0:02:27.4]} 24. Re2 {[%clk 0:03:45.5]} 24... Bxe6 {[%clk 0:02:25]}
25. fxe6 {[%clk 0:03:43.6]} 25... Rfe8 {[%clk 0:02:04.3]} 26. g4 {[%clk
0:03:39.3]} 26... g5 {[%clk 0:02:01.4]} 27. Bg3 {[%clk 0:03:36.7]} 27... Bf4
{[%clk 0:01:52.2]} 28. Bxf4 {[%clk 0:03:35]} 28... gxf4 {[%clk 0:01:51.8]} 29.
a3 {[%clk 0:03:30.9]} 29... Rd6 {[%clk 0:01:49.9]} 30. Rf1 {[%clk 0:03:28.2]}
30... Rdxe6 {[%clk 0:01:48.2]} 31. Rxe6 {[%clk 0:03:27.1]} 31... Rxe6 {[%clk
0:01:47]} 32. Rxf4 {[%clk 0:03:26.8]} 32... Kg7 {[%clk 0:01:44.1]} 33. a4 {[%clk
0:03:24.9]} 33... Re2 {[%clk 0:01:30.5]} 34. axb5 {[%clk 0:03:21.1]} 34... axb5
{[%clk 0:01:28.9]} 35. h4 {[%clk 0:03:20]} 35... Rh2 {[%clk 0:01:13.3]} 36. h5
{[%clk 0:03:17.1]} 36... Re2 {[%clk 0:01:04.3]} 37. c4 {[%clk 0:03:14.6]} 37...
bxc4 {[%clk 0:01:00.3]} 38. Rxc4 {[%clk 0:03:10.9]} 38... Re5 {[%clk 0:00:59.3]}
39. b4 {[%clk 0:03:00.7]} 39... Rb5 {[%clk 0:00:57]} 40. Kc2 {[%clk 0:02:55.5]}
40... Kh6 {[%clk 0:00:48.9]} 41. Kb3 {[%clk 0:02:53.3]} 41... Kg7 {[%clk
0:00:39.6]} 42. Ka4 {[%clk 0:02:50.7]} 42... Rb8 {[%clk 0:00:33.7]} 43. b5
{[%clk 0:02:47.9]} 43... Ra8+ {[%clk 0:00:31.8]} 44. Kb4 {[%clk 0:02:46.4]}
44... Rb8 {[%clk 0:00:31.4]} 45. Ka5 {[%clk 0:02:43.8]} 45... Kf7 {[%clk
0:00:30]} 46. b6 {[%clk 0:02:42.6]} 46... Ke7 {[%clk 0:00:25.6]} 47. Ka6 {[%clk
0:02:41.5]} 47... Kd6 {[%clk 0:00:19.5]} 48. b7 {[%clk 0:02:39.7]} 48... Kd5
{[%clk 0:00:17.9]} 49. Rc8 {[%clk 0:02:38.8]} 49... Rxc8 {[%clk 0:00:12]} 50.
bxc8=Q {[%clk 0:02:36.5]} 50... f5 {[%clk 0:00:11.7]} 51. Qxf5+ {[%clk
0:02:36.1]} 51... Kd4 {[%clk 0:00:10.8]} 52. Qxh7 {[%clk 0:02:35.3]} 52... Kc4
{[%clk 0:00:09.9]} 53. Qd7 {[%clk 0:02:33.4]} 53... Kb3 {[%clk 0:00:09.1]} 54.
h6 {[%clk 0:02:33]} 54... Ka2 {[%clk 0:00:08.4]} 55. h7 {[%clk 0:02:32.8]} 55...
Ka3 {[%clk 0:00:07.4]} 56. h8=Q {[%clk 0:02:31.6]} 56... Ka2 {[%clk 0:00:06.8]}
57. Qa4+ {[%clk 0:02:29.8]} 57... Kb1 {[%clk 0:00:05.7]} 58. Qh1+ {[%clk
0:02:28.7]} 58... Kb2 {[%clk 0:00:03.9]} 59. Qd5 {[%clk 0:02:24.9]} 59... Kb1
{[%clk 0:00:02.9]} 60. Qdd1+ {[%clk 0:02:23.1]} 60... Kb2 {[%clk 0:00:02]} 61.
Qdc2# {[%clk 0:02:21.3]} 1-0

[Event "Live Chess"]
[Site "Chess.com"]
[Date "2024.06.01"]
[Round "-"]
[White "grillage"]
[Black "CarmelJane"]
[Result "1-0"]
[WhiteElo "1883"]
[BlackElo "2083"]
[TimeControl "300"]
[EndTime "11:51:45 PDT"]
[Termination "grillage won by resignation"]

1. d4 {[%clk 0:04:57.7]} 1... Nf6 {[%clk 0:04:57.8]} 2. Nf3 {[%clk 0:04:56.1]}
2... e6 {[%clk 0:04:56.2]} 3. c4 {[%clk 0:04:54.8]} 3... b6 {[%clk 0:04:53.5]}
4. g3 {[%clk 0:04:49.2]} 4... Bb7 {[%clk 0:04:52.1]} 5. Bg2 {[%clk 0:04:48.4]}
5... g6 {[%clk 0:04:51.5]} 6. O-O {[%clk 0:04:47.5]} 6... Bg7 {[%clk 0:04:51]}
7. Nc3 {[%clk 0:04:45.1]} 7... Ne4 {[%clk 0:04:50.5]} 8. Qc2 {[%clk 0:04:41.3]}
8... Nxc3 {[%clk 0:04:49.3]} 9. Qxc3 {[%clk 0:04:39.8]} 9... O-O {[%clk
0:04:44.3]} 10. Bg5 {[%clk 0:04:20.7]} 10... f6 {[%clk 0:04:41.4]} 11. Bf4
{[%clk 0:04:17.2]} 11... d6 {[%clk 0:04:38.9]} 12. Rfd1 {[%clk 0:04:14.7]} 12...
Nd7 {[%clk 0:04:34.1]} 13. Rac1 {[%clk 0:04:08.5]} 13... Rc8 {[%clk 0:04:15.9]}
14. c5 {[%clk 0:04:05.1]} 14... bxc5 {[%clk 0:04:11.1]} 15. dxc5 {[%clk
0:03:59.9]} 15... e5 {[%clk 0:04:08.8]} 16. Be3 {[%clk 0:03:53.3]} 16... Ba6
{[%clk 0:03:54.6]} 17. Rd2 {[%clk 0:03:24.3]} 17... f5 {[%clk 0:03:45.5]} 18.
Ng5 {[%clk 0:03:12.8]} 18... e4 {[%clk 0:02:43.2]} 19. Qb3+ {[%clk 0:03:00.5]}
19... Kh8 {[%clk 0:02:42.1]} 20. Ne6 {[%clk 0:02:53.5]} 20... Qe7 {[%clk
0:02:21.5]} 21. Nxg7 {[%clk 0:02:46.4]} 21... Kxg7 {[%clk 0:02:15.6]} 22. Bd4+
{[%clk 0:02:38.4]} 22... Ne5 {[%clk 0:02:10.8]} 23. Qa3 {[%clk 0:02:09.3]} 23...
Kh6 {[%clk 0:02:03.9]} 24. Qxa6 {[%clk 0:02:05]} 24... Ng4 {[%clk 0:01:47.8]}
25. h3 {[%clk 0:01:59.8]} 25... e3 {[%clk 0:01:47.1]} 26. fxe3 {[%clk
0:01:40.8]} 26... Nxe3 {[%clk 0:01:47]} 27. Qd3 {[%clk 0:01:32.7]} 27... f4
{[%clk 0:01:40.9]} 28. Bxe3 {[%clk 0:01:24.2]} 28... fxe3 {[%clk 0:01:37.9]} 29.
Rdc2 {[%clk 0:01:21.2]} 29... dxc5 {[%clk 0:01:21.6]} 30. Rc3 {[%clk 0:01:13.6]}
30... Rce8 {[%clk 0:01:07.9]} 31. Bf3 {[%clk 0:01:11.8]} 31... Qe5 {[%clk
0:01:05.6]} 32. Kg2 {[%clk 0:01:07.3]} 32... Kg7 {[%clk 0:01:01.5]} 33. Rxc5
{[%clk 0:01:04.4]} 33... Qxb2 {[%clk 0:01:00.6]} 34. Rxc7+ {[%clk 0:01:01.8]}
34... Kh6 {[%clk 0:01:00.2]} 35. R7c2 {[%clk 0:00:50.9]} 35... Qe5 {[%clk
0:00:57.3]} 36. Qc3 {[%clk 0:00:48.1]} 36... Qb5 {[%clk 0:00:50.2]} 37. Qc4
{[%clk 0:00:46.2]} 37... Qb6 {[%clk 0:00:48.8]} 38. Qh4+ {[%clk 0:00:45]} 38...
Kg7 {[%clk 0:00:47.6]} 39. Rc7+ {[%clk 0:00:44]} 39... Rf7 {[%clk 0:00:45.7]}
40. Rxf7+ {[%clk 0:00:39.2]} 40... Kxf7 {[%clk 0:00:45.6]} 41. Qxh7+ {[%clk
0:00:38.3]} 41... Kf8 {[%clk 0:00:44]} 42. Rc7 {[%clk 0:00:33.6]} 42... Qf6
{[%clk 0:00:41.8]} 43. Qh6+ {[%clk 0:00:26.2]} 43... Kg8 {[%clk 0:00:38.5]} 44.
Bd5+ {[%clk 0:00:25]} 44... Re6 {[%clk 0:00:27.9]} 45. Bxe6+ {[%clk 0:00:18.8]}
45... Qxe6 {[%clk 0:00:27.8]} 46. Qh7+ {[%clk 0:00:17.4]} 46... Kf8 {[%clk
0:00:26.9]} 47. Qh8+ {[%clk 0:00:16.5]} 47... Qg8 {[%clk 0:00:26.1]} 48. Rc8+
{[%clk 0:00:15.9]} 48... Ke7 {[%clk 0:00:25.7]} 49. Qxg8 {[%clk 0:00:15.3]}
49... Kd6 {[%clk 0:00:25.6]} 1-0

[Event "Live Chess"]
[Site "Chess.com"]
[Date "2024.06.01"]
[Round "-"]
[White "LanceMaster23"]
[Black "Eva3337"]
[Result "1-0"]
[WhiteElo "1822"]
[BlackElo "1143"]
[TimeControl "300"]
[EndTime "11:52:08 PDT"]
[Termination "LanceMaster23 won on time"]

1. Nf3 {[%clk 0:04:58.6]} 1... Nc6 {[%clk 0:04:53.2]} 2. d4 {[%clk 0:04:57.7]}
2... d5 {[%clk 0:04:49.2]} 3. Bf4 {[%clk 0:04:56.9]} 3... e6 {[%clk 0:04:46.5]}
4. c3 {[%clk 0:04:54.1]} 4... Bd6 {[%clk 0:04:42]} 5. Bxd6 {[%clk 0:04:53.3]}
5... Qxd6 {[%clk 0:04:39.2]} 6. Nbd2 {[%clk 0:04:52.3]} 6... Nf6 {[%clk
0:04:37.6]} 7. Qc2 {[%clk 0:04:50]} 7... Bd7 {[%clk 0:04:29.6]} 8. e4 {[%clk
0:04:47.4]} 8... O-O-O {[%clk 0:04:00.7]} 9. e5 {[%clk 0:04:45.5]} 9... Nxe5
{[%clk 0:03:56.9]} 10. dxe5 {[%clk 0:04:44.5]} 10... Qe7 {[%clk 0:03:42.8]} 11.
exf6 {[%clk 0:04:42.4]} 11... Qxf6 {[%clk 0:03:41.5]} 12. Be2 {[%clk 0:04:34]}
12... h6 {[%clk 0:03:30.1]} 13. O-O-O {[%clk 0:04:28.5]} 13... e5 {[%clk
0:03:14]} 14. Qb3 {[%clk 0:03:45.7]} 14... Bg4 {[%clk 0:02:50.3]} 15. h3 {[%clk
0:03:35.6]} 15... Bh5 {[%clk 0:02:44.3]} 16. Rhe1 {[%clk 0:03:10.1]} 16... d4
{[%clk 0:02:39.9]} 17. Nxd4 {[%clk 0:03:04.1]} 17... exd4 {[%clk 0:02:37.7]} 18.
Bxh5 {[%clk 0:03:01.2]} 18... dxc3 {[%clk 0:02:28.5]} 19. Bg4+ {[%clk
0:02:53.8]} 19... Kb8 {[%clk 0:02:22.8]} 20. Qxc3 {[%clk 0:02:43.9]} 20... Qxf2
{[%clk 0:02:11.2]} 21. Re7 {[%clk 0:02:38.2]} 21... Rc8 {[%clk 0:01:53.4]} 22.
Bxc8 {[%clk 0:02:31.7]} 22... Rxc8 {[%clk 0:01:50.6]} 23. Qxg7 {[%clk
0:02:28.4]} 23... Qc5+ {[%clk 0:01:40]} 24. Kb1 {[%clk 0:02:20.5]} 24... Qxe7
{[%clk 0:01:37.7]} 25. Qxh6 {[%clk 0:01:51.1]} 25... Qe2 {[%clk 0:01:34.8]} 26.
Rf1 {[%clk 0:01:45.6]} 26... Rd8 {[%clk 0:01:30.3]} 27. Kc2 {[%clk 0:01:21.1]}
27... a5 {[%clk 0:01:14.8]} 28. Rxf7 {[%clk 0:01:11.2]} 28... Rxd2+ {[%clk
0:00:52.6]} 29. Qxd2 {[%clk 0:01:06.2]} 29... Qc4+ {[%clk 0:00:50.3]} 30. Qc3
{[%clk 0:01:01.1]} 30... Qxf7 {[%clk 0:00:48.3]} 31. Qh8+ {[%clk 0:01:00.3]}
31... Ka7 {[%clk 0:00:45.6]} 32. Qd4+ {[%clk 0:00:59.8]} 32... Kb8 {[%clk
0:00:43.6]} 33. g4 {[%clk 0:00:38.5]} 33... Qg6+ {[%clk 0:00:17.6]} 34. Qd3
{[%clk 0:00:28.4]} 34... Qc6+ {[%clk 0:00:16.5]} 35. Qc3 {[%clk 0:00:21.4]}
35... Qg2+ {[%clk 0:00:15]} 36. Kb3 {[%clk 0:00:21]} 36... Qd5+ {[%clk
0:00:11.6]} 37. Ka3 {[%clk 0:00:18.2]} 37... Qd6+ {[%clk 0:00:09.8]} 38. b4
{[%clk 0:00:17.5]} 38... axb4+ {[%clk 0:00:05.2]} 39. Qxb4 {[%clk 0:00:17.4]}
39... Qd3+ {[%clk 0:00:03.5]} 40. Qb3 {[%clk 0:00:17.1]} 40... Qd6+ {[%clk
0:00:01.7]} 41. Kb2 {[%clk 0:00:15.5]} 41... Qd2+ {[%clk 0:00:00.5]} 42. Qc2
{[%clk 0:00:15]} 1-0

[Event "Live Chess"]
[Site "Chess.com"]
[Date "2024.06.01"]
[Round "-"]
[White "Mof05"]
[Black "NeilDruggan73"]
[Result "0-1"]
[WhiteElo "1032"]
[BlackElo "1718"]
[TimeControl "300"]
[EndTime "11:52:08 PDT"]
[Termination "NeilDruggan73 won on time"]

1. d4 {[%clk 0:04:54.9]} 1... Nf6 {[%clk 0:04:56.5]} 2. Bf4 {[%clk 0:04:52.6]}
2... g6 {[%clk 0:04:52.9]} 3. e3 {[%clk 0:04:50.6]} 3... Bg7 {[%clk 0:04:51.8]}
4. Nf3 {[%clk 0:04:49.4]} 4... d5 {[%clk 0:04:50.5]} 5. Bd3 {[%clk 0:04:43.6]}
5... h6 {[%clk 0:04:48.8]} 6. h3 {[%clk 0:04:37.2]} 6... Nc6 {[%clk 0:04:31.8]}
7. c3 {[%clk 0:04:35]} 7... O-O {[%clk 0:04:30.1]} 8. Nbd2 {[%clk 0:04:33.4]}
8... Nh5 {[%clk 0:04:28.8]} 9. Bh2 {[%clk 0:04:32]} 9... f5 {[%clk 0:04:26.9]}
10. Ne5 {[%clk 0:04:00.8]} 10... Nxe5 {[%clk 0:04:16.1]} 11. dxe5 {[%clk
0:03:56.9]} 11... c5 {[%clk 0:04:02]} 12. Nf3 {[%clk 0:03:41.8]} 12... Qb6
{[%clk 0:03:35.6]} 13. Qb3 {[%clk 0:03:34.7]} 13... c4 {[%clk 0:03:30]} 14. Qxb6
{[%clk 0:03:33.2]} 14... axb6 {[%clk 0:03:28.8]} 15. Be2 {[%clk 0:03:31.2]}
15... f4 {[%clk 0:03:15.5]} 16. exf4 {[%clk 0:02:59.4]} 16... Nxf4 {[%clk
0:03:11.5]} 17. Bxf4 {[%clk 0:02:58]} 17... Rxf4 {[%clk 0:03:09.7]} 18. g3
{[%clk 0:02:44.5]} 18... Re4 {[%clk 0:03:06.7]} 19. a3 {[%clk 0:02:18.4]} 19...
Bxe5 {[%clk 0:03:04.3]} 20. Nxe5 {[%clk 0:02:13.4]} 20... Rxe5 {[%clk
0:03:02.6]} 21. Rd1 {[%clk 0:02:11.8]} 21... Bf5 {[%clk 0:02:51.8]} 22. Rd2
{[%clk 0:01:57.3]} 22... Be4 {[%clk 0:02:48.7]} 23. O-O {[%clk 0:01:46.2]} 23...
Bf5 {[%clk 0:02:35.5]} 24. Re1 {[%clk 0:01:44]} 24... Bxh3 {[%clk 0:02:28.4]}
25. Rdd1 {[%clk 0:01:35.9]} 25... Rf8 {[%clk 0:02:25.3]} 26. Bf1 {[%clk
0:01:29.8]} 26... Rxe1 {[%clk 0:02:22.1]} 27. Rxe1 {[%clk 0:01:28.6]} 27... Bxf1
{[%clk 0:02:19.9]} 28. Kxf1 {[%clk 0:01:26.9]} 28... Kf7 {[%clk 0:02:15.8]} 29.
Kg2 {[%clk 0:01:21.2]} 29... Kf6 {[%clk 0:02:12.1]} 30. Re3 {[%clk 0:01:11.6]}
30... e5 {[%clk 0:02:11.2]} 31. Re1 {[%clk 0:01:07.2]} 31... g5 {[%clk
0:02:07.2]} 32. Rd1 {[%clk 0:01:03.7]} 32... Ke6 {[%clk 0:02:05.6]} 33. Re1
{[%clk 0:00:50.1]} 33... g4 {[%clk 0:02:03.7]} 34. Rb1 {[%clk 0:00:35]} 34...
Rf3 {[%clk 0:02:01.2]} 35. Re1 {[%clk 0:00:30.9]} 35... Rd3 {[%clk 0:01:59]} 36.
Re3 {[%clk 0:00:16.3]} 36... Rd2 {[%clk 0:01:57.1]} 37. Re1 {[%clk 0:00:12.3]}
37... Rxb2 {[%clk 0:01:55.8]} 38. Ra1 {[%clk 0:00:07]} 38... Rb3 {[%clk
0:01:54.5]} 39. a4 {[%clk 0:00:05.8]} 39... Rxc3 {[%clk 0:01:53]} 40. a5 {[%clk
0:00:05]} 40... b5 {[%clk 0:01:51.1]} 41. a6 {[%clk 0:00:03.7]} 41... bxa6
{[%clk 0:01:49.8]} 42. Rxa6+ {[%clk 0:00:02]} 42... Kf5 {[%clk 0:01:45.9]} 43.
Rxh6 {[%clk 0:00:00.7]} 43... b4 {[%clk 0:01:43.4]} 0-1

[Event "Live Chess"]
[Site "Chess.com"]
[Date "2024.06.01"]
[Round "-"]
[White "booktrunk"]
[Black "JanMur7"]
[Result "0-1"]
[WhiteElo "1371"]
[BlackElo "2283"]
[TimeControl "300"]
[EndTime "11:52:16 PDT"]
[Termination "JanMur7 won by resignation"]

1. d4 {[%clk 0:04:45.7]} 1... Nf6 {[%clk 0:04:58.6]} 2. Nc3 {[%clk 0:04:43.9]}
2... d5 {[%clk 0:04:56.9]} 3. Bf4 {[%clk 0:04:43.2]} 3... Bf5 {[%clk 0:04:55.1]}
4. Nf3 {[%clk 0:04:29.7]} 4... c6 {[%clk 0:04:52]} 5. Nh4 {[%clk 0:04:27.7]}
5... Bg6 {[%clk 0:04:47.6]} 6. Nxg6 {[%clk 0:04:26]} 6... hxg6 {[%clk
0:04:47.5]} 7. h3 {[%clk 0:04:23.6]} 7... e6 {[%clk 0:04:46]} 8. e3 {[%clk
0:04:20.8]} 8... Bd6 {[%clk 0:04:44.5]} 9. Bd3 {[%clk 0:04:17.9]} 9... Qc7
{[%clk 0:04:37.7]} 10. Qf3 {[%clk 0:04:15.9]} 10... Bxf4 {[%clk 0:04:33.6]} 11.
Qxf4 {[%clk 0:04:14.1]} 11... Qxf4 {[%clk 0:04:32.1]} 12. exf4 {[%clk
0:04:13.1]} 12... Nbd7 {[%clk 0:04:31.7]} 13. g3 {[%clk 0:04:07.9]} 13... a6
{[%clk 0:04:28.5]} 14. O-O-O {[%clk 0:04:06.4]} 14... c5 {[%clk 0:04:25.7]} 15.
dxc5 {[%clk 0:04:04.2]} 15... Nxc5 {[%clk 0:04:25.6]} 16. Be2 {[%clk 0:04:02.8]}
16... Nfe4 {[%clk 0:04:24.3]} 17. Nxe4 {[%clk 0:04:01.1]} 17... Nxe4 {[%clk
0:04:24.2]} 18. Rhf1 {[%clk 0:03:55.5]} 18... Ke7 {[%clk 0:04:21.6]} 19. h4
{[%clk 0:03:53.7]} 19... Rac8 {[%clk 0:04:17.7]} 20. Bf3 {[%clk 0:03:52.2]}
20... Nd6 {[%clk 0:04:15.2]} 21. Rfe1 {[%clk 0:03:48.1]} 21... Kf6 {[%clk
0:04:13.2]} 22. c3 {[%clk 0:03:42.3]} 22... b5 {[%clk 0:04:08]} 23. Kc2 {[%clk
0:03:41.1]} 23... b4 {[%clk 0:04:06.5]} 24. Rd4 {[%clk 0:03:38.1]} 24... bxc3
{[%clk 0:04:05.4]} 25. bxc3 {[%clk 0:03:34.9]} 25... Nb5 {[%clk 0:04:04.9]} 26.
Rd3 {[%clk 0:03:32.1]} 26... Rc4 {[%clk 0:04:02.9]} 27. Rb1 {[%clk 0:03:26.2]}
27... Rhc8 {[%clk 0:04:00.1]} 28. Re3 {[%clk 0:03:23.5]} 28... Na3+ {[%clk
0:03:54.1]} 29. Kb2 {[%clk 0:03:19]} 29... Nxb1 {[%clk 0:03:54]} 30. Kxb1 {[%clk
0:03:18.2]} 30... Rxc3 {[%clk 0:03:53.6]} 31. Rxc3 {[%clk 0:03:16.2]} 31... Rxc3
{[%clk 0:03:53.5]} 32. Bg2 {[%clk 0:03:14.5]} 32... d4 {[%clk 0:03:49.5]} 33.
Kb2 {[%clk 0:03:11.8]} 33... e5 {[%clk 0:03:49]} 34. Be4 {[%clk 0:03:09.4]}
34... exf4 {[%clk 0:03:46.8]} 35. gxf4 {[%clk 0:03:07.5]} 35... Rh3 {[%clk
0:03:46.6]} 0-1